fUST/lending_fUST_20240415
["ID","MTS","AMOUNT","RATE_DAILY","PERIOD"]
[322662569,1713195051718,-500.0,0.00033424,7]
[322662570,1713195051728,-500.0,0.00033424,7]
[322662571,1713195051739,-713.17,0.00033424,7]
[322662572,1713195051754,-596.53315509,0.00033424,7]
[322662573,1713195051764,-500.0,0.00033424,7]
[322662574,1713195051774,-500.0,0.00033424,7]
[322662575,1713195051784,-500.0,0.00033424,7]
[322662576,1713195051798,-503.97262849,0.00033424,7]
[322662577,1713195051808,-500.0,0.00033424,7]
[322662578,1713195051817,-652.33,0.00033424,7]
[322662579,1713195051827,-500.0,0.00033424,7]
[322662580,1713195051836,-500.0,0.00033424,7]
[322662581,1713195051846,-500.0,0.00033424,7]
[322662582,1713195051859,-500.0,0.00033424,7]
[322662583,1713195051868,-1895.85,0.00033424,7]
[322662584,1713195051878,-500.0,0.00033424,7]
[322662585,1713195051887,-1960.27,0.00033424,7]
[322662586,1713195051897,-500.0,0.00033424,7]
[322662587,1713195051907,-500.0,0.00033424,7]
[322662588,1713195051917,-500.0,0.00033424,7]
[322662589,1713195051926,-500.0,0.00033424,7]
[322662590,1713195051936,-500.0,0.00033424,7]
[322662591,1713195051946,-3018.7,0.00033424,7]
[322662592,1713195051955,-500.0,0.00033424,7]
[322662593,1713195051965,-500.0,0.00033424,7]
[322662594,1713195051975,-500.0,0.00033424,7]
[322662595,1713195051985,-500.0,0.00033424,7]
[322662596,1713195051994,-500.0,0.00033424,7]
[322662597,1713195052004,-500.0,0.00033424,7]
[322662598,1713195052014,-500.0,0.00033424,7]
[322662599,1713195052023,-500.0,0.00033424,7]
[322662600,1713195052032,-3126.18,0.00033424,7]
[322662601,1713195052041,-557.31,0.00033424,7]
[322662602,1713195052051,-500.0,0.00033424,7]
[322662603,1713195052061,-757.85,0.00033424,7]
[322662604,1713195052070,-500.0,0.00033424,7]
[322662605,1713195052080,-500.0,0.00033424,7]
[322662606,1713195052089,-500.0,0.00033424,7]
[322662607,1713195052098,-719.65,0.00033424,7]
[322662608,1713195052111,-250.96343381,0.00033424,7]
[322662609,1713195052120,-500.0,0.00033424,7]
[322662610,1713195052129,-500.0,0.00033424,7]
[322662611,1713195052138,-6792.28,0.00033424,7]
[322662612,1713195052147,-500.56103648,0.00033424,7]
[322662613,1713195052156,-564.14,0.00033424,7]
[322662614,1713195052166,-500.0,0.00033424,7]
[322662615,1713195052175,-9058.56,0.00033424,7]
[322662616,1713195052186,-383.83001576,0.00033424,7]
[322662617,1713195052195,-1776.83,0.00033424,7]
[322662618,1713195052205,-500.0,0.00033424,7]
[322662619,1713195052215,-1932.9,0.00033424,7]
[322662620,1713195052226,-500.0,0.00033424,7]
[322662621,1713195052236,-731.34,0.00033424,7]
[322662622,1713195052246,-500.0,0.00033424,7]
[322662623,1713195052256,-2791.46,0.00033424,7]
[322662624,1713195052265,-500.0,0.00033424,7]
[322662625,1713195052275,-500.0,0.00033424,7]
[322662626,1713195052284,-500.0,0.00033424,7]
[322662627,1713195052293,-2623.62,0.00033424,7]
[322662628,1713195052303,-500.0,0.00033424,7]
[322662629,1713195052312,-500.0,0.00033424,7]
[322662630,1713195052322,-3402.10578372,0.00033424,7]
[322662639,1713195052546,-304.24078065,0.00022552,2]
[322662640,1713195052556,-2619.93201651,0.00022554,2]
[322662641,1713195052567,-500.0,0.00032876,7]
[322662642,1713195052578,-159.89716827,0.00032876,7]
[322662643,1713195052589,-1521.37552,0.0003315,2]
[322662644,1713195052603,-500.0,0.0003315,7]
[322662645,1713195052614,-500.0,0.0003315,7]
[322662646,1713195052624,-1104.99421628,0.00033424,7]
[322662647,1713195052635,-501.56693012,0.00033424,7]
[322662648,1713195052645,-500.0,0.00033424,7]
[322662649,1713195052656,-500.0,0.00033424,7]
[322662650,1713195052666,-927.93,0.00033424,7]
[322662651,1713195052676,-1028.49,0.00033424,7]
[322662652,1713195052686,-500.0,0.00033424,7]
[322662653,1713195052695,-1763.77336817,0.00033424,7]
[322662654,1713195052707,-14789.13663183,0.00033424,7]
[322662655,1713195052717,-513.68513876,0.00033424,7]
[322662656,1713195052727,-500.0,0.00033424,7]
[322662657,1713195052736,-3791.99,0.00033424,7]
[322662658,1713195052746,-632.31,0.00033424,7]
[322662659,1713195052756,-932.35,0.00033424,7]
[322662660,1713195052765,-500.0,0.00033424,7]
[322662661,1713195052775,-500.0,0.00033424,7]
[322662662,1713195052785,-500.0,0.00033424,7]
[322662663,1713195052793,-500.0,0.00033424,7]
[322662664,1713195052804,-500.0,0.00033424,7]
[322662665,1713195052813,-1572.43,0.00033424,7]
[322662666,1713195052823,-500.0,0.00033424,7]
[322662667,1713195052832,-500.0,0.00033424,7]
[322662668,1713195052841,-839.29,0.00033424,7]
[322662669,1713195052852,-500.0,0.00033424,7]
[322662670,1713195052862,-500.0,0.00033424,7]
[322662671,1713195052871,-1505.25,0.00033424,7]
[322662672,1713195052881,-500.0,0.00033424,7]
[322662673,1713195052890,-568.35,0.00033424,7]
[322662674,1713195052900,-500.0,0.00033424,7]
[322662675,1713195052909,-2076.23,0.00033424,7]
[322662676,1713195052919,-341.88050539,0.00033424,7]
[322662677,1713195052928,-500.0,0.00033424,7]
[322662678,1713195052938,-500.68032662,0.00033424,7]
[322662679,1713195052947,-663.75,0.00033424,7]
[322662680,1713195052957,-505.53270018,0.00033424,7]
[322662681,1713195052966,-500.0,0.00033424,7]
[322662682,1713195052976,-500.0,0.00033424,7]
[322662683,1713195052985,-500.0,0.00033424,7]
[322662684,1713195052995,-26323.24,0.00033424,7]
[322662685,1713195053004,-924.58471924,0.00033424,7]
[322662686,1713195053022,-216.09314923,0.00022552,2]
[322662687,1713195053031,-154.29528076,0.00033424,7]
[322662688,1713195053040,-500.0,0.00033424,7]
[322662689,1713195053049,-163.29417386,0.00033424,7]
[322662690,1713195053508,-1611.40303377,0.00029998,2]
[322662691,1713195053520,-217.22176354,0.00032875,4]
[322662692,1713195053529,-500.0,0.00032876,2]
[322662693,1713195053540,-50795.98582614,0.00033424,7]
[322662694,1713195053551,-500.0,0.00033424,7]
[322662695,1713195053561,-1145.97,0.00033424,7]
[322662696,1713195053570,-500.0,0.00033424,7]
[322662697,1713195053580,-500.0,0.00033424,7]
[322662698,1713195053588,-576.58894019,0.00033424,7]
[322662699,1713195053598,-5588.24,0.00033424,7]
[322662700,1713195053613,-862.73,0.00033424,7]
[322662701,1713195053624,-500.0,0.00033424,7]
[322662702,1713195053635,-500.0,0.00033424,7]
[322662703,1713195053645,-506.48566064,0.00033424,7]
[322662704,1713195053656,-10616.55,0.00033424,7]
[322662705,1713195053666,-5593.81,0.00033424,7]
[322662706,1713195053675,-1167.71,0.00033424,7]
[322662707,1713195053684,-500.0,0.00033424,7]
[322662708,1713195053694,-539.03,0.00033424,7]
[322662709,1713195053703,-500.0,0.00033424,7]
[322662710,1713195053714,-819.99,0.00033424,7]
[322662711,1713195053723,-3211.31,0.00033424,7]
[322662712,1713195053733,-500.0,0.00033424,7]
[322662713,1713195053742,-500.0,0.00033424,7]
[322662714,1713195053751,-505.21494663,0.00033424,7]
[322662715,1713195053760,-501.10597998,0.00033424,7]
[322662716,1713195053769,-2334.44,0.00033424,7]
[322662717,1713195053778,-500.0,0.00033424,7]
[322662718,1713195053787,-828.9,0.00033424,7]
[322662719,1713195053796,-1110.43,0.00033424,7]
[322662720,1713195053805,-500.0,0.00033424,7]
[322662721,1713195053814,-500.0,0.00033424,7]
[322662722,1713195053824,-500.0,0.00033424,7]
[322662723,1713195053833,-567.09,0.00033424,7]
[322662724,1713195053842,-500.0,0.00033424,7]
[322662725,1713195053855,-500.0,0.00033424,7]
[322662726,1713195053865,-500.0,0.00033424,7]
[322662727,1713195053873,-500.0,0.00033424,7]
[322662728,1713195053883,-816.1,0.00033424,7]
[322662729,1713195053892,-500.0,0.00033424,7]
[322662730,1713195053901,-186.82321834,0.00033424,7]
[322662731,1713195053910,-500.0,0.00033424,7]
[322662732,1713195053919,-2945.49,0.00033424,7]
[322662733,1713195053928,-500.0,0.00033424,7]
[322662734,1713195053937,-5523.1,0.00033424,7]
[322662735,1713195053947,-384.69487171,0.00033424,7]
[322662736,1713195053956,-500.0,0.00033424,7]
[322662737,1713195053965,-2555.84,0.00033424,7]
[322662738,1713195053975,-9541.84,0.00033424,7]
[322662739,1713195053984,-500.0,0.00033424,7]
[322662740,1713195053994,-500.0,0.00033424,7]
[322662741,1713195054003,-2757.91289328,0.00033476,2]
[322662742,1713195054013,-163.50866215,0.00033517,6]
[322662743,1713195054022,-235.0,0.00033668,35]
[322662744,1713195054031,-4521.0,0.00033668,35]
[322662745,1713195054040,-150.5,0.00033668,35]
[322662746,1713195054050,-235.0,0.00033678,35]
[322662747,1713195054059,-4521.0,0.00033678,35]
[322662748,1713195054069,-150.5,0.00033678,35]
[322662749,1713195054078,-235.0,0.00033688,35]
[322662750,1713195054087,-4521.0,0.00033688,35]
[322662751,1713195054097,-150.5,0.00033688,35]
[322662752,1713195054108,-532.19,0.00033698,7]
[322662753,1713195054117,-500.0,0.00033698,7]
[322662754,1713195054127,-500.0,0.00033698,7]
[322662755,1713195054136,-500.0,0.00033698,7]
[322662756,1713195054145,-500.0,0.00033698,7]
[322662757,1713195054154,-507.53349252,0.00033698,7]
[322662758,1713195054164,-500.0,0.00033698,7]
[322662759,1713195054173,-500.0,0.00033698,7]
[322662760,1713195054182,-517.7,0.00033698,7]
[322662761,1713195054191,-153.04614349,0.00033698,7]
[322662786,1713195942413,1211.03128297,0.00039215,30]
[322662788,1713195989730,1332.13441336,0.00039215,30]
[322662869,1713196231974,-154.90705577,0.00021004,2]
[322662870,1713196231983,-203.83136061,0.00021005,2]
[322662871,1713196231993,-1933.58973003,0.00021005,2]
[322662872,1713196232002,-2619.93201651,0.00021006,2]
[322662873,1713196232012,-361.42917162,0.00021006,2]
[322662874,1713196232021,-24900.0,0.00021007,2]
[322662875,1713196232030,-185.88478385,0.00021564,2]
[322662876,1713196232039,-216.09314923,0.00021564,2]
[322662877,1713196232049,-465.54275038,0.00021564,2]
[322662878,1713196232058,-154.90705577,0.00021564,2]
[322662879,1713196232067,-1574.32701702,0.00021564,2]
[322662880,1713196232077,-154.90705577,0.00021565,2]
[322662881,1713196232088,-2940.2321375,0.00021565,2]
[322662882,1713196232097,-300.0,0.00021565,2]
[322662883,1713196232107,-300.0,0.00021565,2]
[322662884,1713196232117,-207.55380091,0.00021566,2]
[322662885,1713196232127,-304.24078065,0.00021566,2]
[322662886,1713196232137,-2007.62821039,0.00021566,2]
[322662887,1713196232146,-13506.7907969,0.00021594,2]
[322662888,1713196232155,-158.76974363,0.00022484,2]
[322662889,1713196232165,-162.7588361,0.00022485,2]
[322662890,1713196232175,-400.0,0.00023444,2]
[322662891,1713196232184,-26343.7195411,0.00023563,2]
[322662892,1713196232194,-250.0,0.00023672,2]
[322662893,1713196232203,-1202.867597,0.00023672,2]
[322662894,1713196232212,-420.0,0.00023722,2]
[322662895,1713196232221,-162.75883608,0.00025068,2]
[322662896,1713196232231,-587.0,0.00026094,2]
[322662897,1713196232240,-157.987051,0.00027397,2]
[322662898,1713196232250,-166.666666,0.00027397,2]
[322662899,1713196232259,-581.084004,0.00027397,2]
[322662900,1713196232268,-162.75883608,0.00027651,3]
[322662901,1713196232277,-166.666666,0.00028038,2]
[322662902,1713196232286,-33.16901269,0.00028679,2]
[322663042,1713196238230,-163.91782719,0.00021004,2]
[322663043,1713196238240,-133.49765331,0.00028679,2]
[322663044,1713196238249,-823.0,0.00028703,2]
[322663045,1713196238257,-166.666666,0.00029321,2]
[322663046,1713196238265,-2.65038104,0.00029962,2]
[322663047,1713196238277,-164.01628496,0.00029962,2]
[322663048,1713196238286,-162.75883608,0.00030234,5]
[322663049,1713196238294,-166.666666,0.00030603,2]
[322663050,1713196238303,-1152.0,0.00031573,2]
[322663051,1713196238312,-769.70362739,0.00032007,4]
[322663052,1713196238322,-712.44147849,0.00032011,4]
[322663053,1713196238350,-213.29432251,0.00032011,4]
[322663054,1713196238360,-759.29134848,0.00032774,2]
[322663055,1713196238369,-162.75883608,0.00032816,6]
[322663056,1713196238378,-509.36221554,0.00032841,4]
[322663057,1713196238387,-759.29134844,0.00032843,2]
[322663058,1713196238396,-196.62167409,0.00032872,4]
[322663059,1713196238405,-42756.32296205,0.00032873,4]
[322663060,1713196238414,-181.40276214,0.00032874,4]
[322663061,1713196238424,-272.49368097,0.00032874,4]
[322663062,1713196238434,-937.19103165,0.00032874,4]
[322663063,1713196238443,-185.79060076,0.00032874,4]
[322663064,1713196238453,-193.9505829,0.00032874,4]
[322663065,1713196238462,-398.32685348,0.00032874,4]
[322663066,1713196238472,-245.78461844,0.00032874,4]
[322663067,1713196238481,-200.0,0.00032874,4]
[322663069,1713196238491,-470.72269089,0.00032874,4]
[322663071,1713196238500,-687.6463722,0.00032874,4]
[322663073,1713196238510,-309.8641515,0.00032874,4]
[322663075,1713196238519,-741.58833708,0.00032874,4]
[322663077,1713196238528,-332.51374611,0.00032874,4]
[322663079,1713196238537,-282.46191731,0.00032874,4]
[322663082,1713196238547,-207.12079551,0.00032874,4]
[322663083,1713196238556,-156.20491077,0.00032874,4]
[322663086,1713196238566,-309.8296564,0.00032874,4]
[322663087,1713196238575,-1855.17275697,0.00032874,4]
[322663090,1713196238584,-154.92253873,0.00032874,4]
[322663091,1713196238595,-367.47144445,0.00032875,4]
[322663092,1713196238604,-1046.48194282,0.00032875,4]
[322663093,1713196238613,-55848.75546278,0.00032875,2]
[322663094,1713196238622,-258.51272603,0.00032875,2]
[322663095,1713196238631,-421.75776626,0.00032875,2]
[322663096,1713196238640,-500.0,0.00032875,2]
[322663098,1713196238649,-500.0,0.00032875,2]
[322663099,1713196238658,-500.0,0.00032875,2]
[322663100,1713196238667,-500.0,0.00032875,2]
[322663101,1713196238676,-565.46329712,0.00032875,2]
[322663102,1713196238685,-274.35736207,0.00032875,2]
[322663103,1713196238694,-13211.48627009,0.00032876,5]
[322663105,1713196238704,-504.88526204,0.00032876,7]
[322663106,1713196238712,-500.0,0.00032876,7]
[322663107,1713196238721,-404.97276501,0.00032876,7]
[322663108,1713196238730,-500.0,0.00032876,7]
[322663109,1713196238739,-500.0,0.00032876,7]
[322663110,1713196238748,-503.96196354,0.00032876,7]
[322663111,1713196238757,-500.0,0.00032876,7]
[322663112,1713196238766,-500.0,0.00032876,7]
[322663113,1713196238777,-500.0,0.00032876,7]
[322663114,1713196238786,-500.0,0.00032876,7]
[322663115,1713196238794,-500.0,0.00032876,7]
[322663116,1713196238803,-500.0,0.00032876,7]
[322663117,1713196238813,-501.80085222,0.00032876,7]
[322663118,1713196238822,-500.0,0.00032876,7]
[322663119,1713196238831,-500.0,0.00032876,7]
[322663120,1713196238843,-1000.0,0.00032876,2]
[322663121,1713196238852,-500.0,0.00032876,7]
[322663122,1713196238862,-500.0,0.00032876,7]
[322663123,1713196238874,-776.99,0.00032876,7]
[322663124,1713196238883,-500.0,0.00032876,7]
[322663125,1713196238892,-500.0,0.00032876,7]
[322663126,1713196238901,-500.0,0.00032876,7]
[322663127,1713196238910,-500.0,0.00032876,7]
[322663128,1713196238919,-500.0,0.00032876,7]
[322663129,1713196238928,-500.0,0.00032876,7]
[322663130,1713196238938,-500.0,0.00032876,7]
[322663131,1713196238948,-500.0,0.00032876,7]
[322663132,1713196238958,-250.96343381,0.00032876,7]
[322663133,1713196238967,-500.0,0.00032876,7]
[322663134,1713196238976,-1874.9,0.00032876,7]
[322663135,1713196238985,-500.0,0.00032876,7]
[322663136,1713196238994,-500.0,0.00032876,7]
[322663137,1713196239003,-500.0,0.00032876,7]
[322663138,1713196239012,-610.56222512,0.00032876,7]
[322663139,1713196239022,-500.0,0.00032876,7]
[322663140,1713196239031,-615.24,0.00032876,7]
[322663141,1713196239040,-497.48,0.00032876,7]
[322663142,1713196239049,-541.55,0.00032876,7]
[322663143,1713196239059,-534.18305525,0.00032876,7]
[322663144,1713196239068,-500.0,0.00032876,7]
[322663145,1713196239077,-596.53315509,0.00032876,7]
[322663146,1713196239089,-1737.86,0.00032876,7]
[322663147,1713196239099,-500.0,0.00032876,7]
[322663148,1713196239108,-383.83001576,0.00032876,7]
[322663149,1713196239116,-500.0,0.00032876,7]
[322663150,1713196239126,-515.43455269,0.00032876,7]
[322663151,1713196239135,-500.0,0.00032876,7]
[322663152,1713196239144,-500.0,0.00032876,7]
[322663153,1713196239153,-500.0,0.00032876,7]
[322663154,1713196239163,-500.0,0.00032876,7]
[322663155,1713196239172,-500.0,0.00032876,7]
[322663156,1713196239181,-500.0,0.00032876,7]
[322663157,1713196239190,-500.0,0.00032876,7]
[322663158,1713196239199,-919.6,0.00032876,7]
[322663159,1713196239208,-500.0,0.00032876,7]
[322663160,1713196239218,-998.68,0.00032876,7]
[322663161,1713196239228,-500.0,0.00032876,7]
[322663162,1713196239237,-500.0,0.00032876,7]
[322663163,1713196239247,-500.0,0.00032876,7]
[322663164,1713196239257,-510.91615152,0.00032876,7]
[322663165,1713196239266,-500.0,0.00032876,7]
[322663166,1713196239274,-500.0,0.00032876,7]
[322663167,1713196239283,-500.0,0.00032876,7]
[322663168,1713196239292,-500.0,0.00032876,7]
[322663169,1713196239301,-822.22,0.00032876,7]
[322663170,1713196239310,-500.0,0.00032876,7]
[322663171,1713196239320,-500.0,0.00032876,7]
[322663172,1713196239329,-500.0,0.00032876,7]
[322663173,1713196239341,-653.74,0.00032876,7]
[322663174,1713196239350,-500.0,0.00032876,7]
[322663175,1713196239359,-500.0,0.00032876,7]
[322663176,1713196239369,-1050.47,0.00032876,7]
[322663178,1713196239379,-503.40742812,0.00032876,7]
[322663179,1713196239390,-500.0,0.00032876,7]
[322663180,1713196239400,-500.0,0.00032876,7]
[322663181,1713196239410,-597.97,0.00032876,7]
[322663182,1713196239420,-500.0,0.00032876,7]
[322663183,1713196239430,-500.0,0.00032876,7]
[322663184,1713196239441,-160.48721337,0.00032876,7]
[322663185,1713196239450,-524.59068916,0.00032876,7]
[322663186,1713196239459,-500.0,0.00032876,7]
[322663187,1713196239468,-500.0,0.00032876,7]
[322663188,1713196239478,-519.84,0.00032876,7]
[322663189,1713196239487,-500.0,0.00032876,7]
[322663190,1713196239497,-500.0,0.00032876,7]
[322663191,1713196239507,-500.0,0.00032876,7]
[322663192,1713196239516,-500.0,0.00032876,7]
[322663193,1713196239526,-500.0,0.00032876,7]
[322663194,1713196239536,-500.0,0.00032876,7]
[322663195,1713196239546,-500.0,0.00032876,7]
[322663196,1713196239556,-1628.76,0.00032876,7]
[322663197,1713196239565,-500.0,0.00032876,7]
[322663198,1713196239574,-500.0,0.00032876,7]
[322663199,1713196239584,-500.0,0.00032876,7]
[322663200,1713196239596,-500.0,0.00032876,7]
[322663201,1713196239605,-500.0,0.00032876,7]
[322663202,1713196239614,-500.0,0.00032876,7]
[322663203,1713196239623,-500.0,0.00032876,7]
[322663204,1713196239632,-2865.66,0.00032876,7]
[322663205,1713196239641,-500.0,0.00032876,7]
[322663206,1713196239651,-500.0,0.00032876,7]
[322663207,1713196239660,-500.0,0.00032876,7]
[322663208,1713196239669,-571.34,0.00032876,7]
[322663209,1713196239678,-500.0,0.00032876,7]
[322663210,1713196239687,-500.0,0.00032876,7]
[322663211,1713196239696,-500.0,0.00032876,7]
[322663212,1713196239706,-511.52574006,0.00032876,7]
[322663213,1713196239715,-281.05363168,0.00032876,7]
[322663214,1713196239842,-501.72738684,0.00032876,7]
[322663215,1713196239852,-500.0,0.00032876,7]
[322663216,1713196239862,-573.41984339,0.00032876,7]
[322663217,1713196239873,-500.0,0.00032876,7]
[322663218,1713196239882,-500.0,0.00032876,7]
[322663219,1713196239891,-527.84,0.00032876,7]
[322663220,1713196239901,-500.0,0.00032876,7]
[322663221,1713196239910,-500.0,0.00032876,7]
[322663222,1713196239919,-500.0,0.00032876,7]
[322663223,1713196239929,-500.0,0.00032876,7]
[322663224,1713196239938,-500.0,0.00032876,7]
[322663225,1713196239947,-500.0,0.00032876,7]
[322663226,1713196239957,-500.0,0.00032876,7]
[322663227,1713196239967,-500.0,0.00032876,7]
[322663228,1713196239976,-500.0,0.00032876,7]
[322663229,1713196239986,-500.0,0.00032876,7]
[322663230,1713196239995,-500.0,0.00032876,7]
[322663231,1713196240004,-500.0,0.00032876,7]
[322663232,1713196240013,-500.0,0.00032876,7]
[322663233,1713196240022,-500.0,0.00032876,7]
[322663234,1713196240031,-500.0,0.00032876,7]
[322663235,1713196240041,-500.0,0.00032876,7]
[322663236,1713196240050,-500.0,0.00032876,7]
[322663237,1713196240059,-500.0,0.00032876,7]
[322663238,1713196240069,-585.0944718,0.00032876,7]
[322663239,1713196240078,-500.0,0.00032876,7]
[322663240,1713196240089,-500.0,0.00032876,7]
[322663241,1713196240098,-500.0,0.00032876,7]
[322663242,1713196240107,-500.0,0.00032876,7]
[322663243,1713196240116,-534.09,0.00032876,7]
[322663244,1713196240125,-500.0,0.00032876,7]
[322663245,1713196240134,-500.0,0.00032876,7]
[322663246,1713196240144,-500.0,0.00032876,7]
[322663247,1713196240153,-1878.59,0.00032876,7]
[322663248,1713196240164,-500.0,0.00032876,7]
[322663249,1713196240174,-500.0,0.00032876,7]
[322663250,1713196240183,-500.0,0.00032876,7]
[322663251,1713196240192,-500.0,0.00032876,7]
[322663252,1713196240201,-500.0,0.00032876,7]
[322663253,1713196240211,-500.0,0.00032876,7]
[322663254,1713196240220,-726.28,0.00032876,7]
[322663255,1713196240229,-500.0,0.00032876,7]
[322663256,1713196240238,-500.0,0.00032876,7]
[322663257,1713196240247,-6509.27,0.00032876,7]
[322663258,1713196240256,-500.0,0.00032876,7]
[322663259,1713196240265,-500.0,0.00032876,7]
[322663260,1713196240275,-500.0,0.00032876,7]
[322663261,1713196240285,-500.0,0.00032876,7]
[322663262,1713196240294,-504.96681818,0.00032876,7]
[322663263,1713196240303,-500.0,0.00032876,7]
[322663264,1713196240312,-500.0,0.00032876,7]
[322663265,1713196240322,-500.0,0.00032876,7]
[322663266,1713196240332,-500.0,0.00032876,7]
[322663267,1713196240345,-744.27,0.00032876,7]
[322663269,1713196240355,-500.0,0.00032876,7]
[322663272,1713196240365,-566.27547528,0.00032876,7]
[322663275,1713196240376,-700.87,0.00032876,7]
[322663278,1713196240386,-500.0,0.00032876,7]
[322663280,1713196240396,-500.0,0.00032876,7]
[322663281,1713196240406,-500.0,0.00032876,7]
[322663283,1713196240416,-217.25260511,0.00032876,7]
[322663285,1713196240425,-500.0,0.00032876,7]
[322663287,1713196240435,-500.0,0.00032876,7]
[322663289,1713196240444,-1441.4,0.00032876,7]
[322663291,1713196240453,-524.77,0.00032876,7]
[322663292,1713196240463,-500.0,0.00032876,7]
[322663293,1713196240472,-500.0,0.00032876,7]
[322663294,1713196240482,-854.66,0.00032876,7]
[322663296,1713196240491,-500.0,0.00032876,7]
[322663297,1713196240500,-8681.12,0.00032876,7]
[322663299,1713196240510,-834.46,0.00032876,7]
[322663300,1713196240519,-500.0,0.00032876,7]
[322663301,1713196240528,-540.63,0.00032876,7]
[322663302,1713196240537,-500.0,0.00032876,7]
[322663303,1713196240547,-2514.3,0.00032876,7]
[322663304,1713196240555,-942.78,0.00032876,7]
[322663305,1713196240565,-2675.14,0.00032876,7]
[322663307,1713196240574,-1852.36,0.00032876,7]
[322663309,1713196240584,-555.31881766,0.00032876,7]
[322663310,1713196240596,-500.0,0.00032876,7]
[322663311,1713196240604,-500.0,0.00032876,7]
[322663312,1713196240613,-500.0,0.00032876,7]
[322663313,1713196240623,-15173.5,0.00032876,7]
[322663314,1713196240632,-3476.0,0.00032876,7]
[322663315,1713196240642,-500.0,0.00032876,7]
[322663316,1713196240651,-500.0,0.00032876,7]
[322663317,1713196240660,-262.16571509,0.00032876,7]
[322663318,1713196240669,-517.7,0.00032876,7]
[322663319,1713196240679,-500.0,0.00032876,7]
[322663320,1713196240688,-504.06426135,0.00032876,7]
[322663321,1713196240698,-500.0,0.00032876,7]
[322663322,1713196240707,-500.0,0.00032876,7]
[322663323,1713196240717,-500.0,0.00032876,7]
[322663324,1713196240726,-500.0,0.00032876,7]
[322663325,1713196240735,-579.62,0.00032876,7]
[322663326,1713196240744,-176.22142461,0.00032876,7]
[322663327,1713196240754,-500.0,0.00032876,7]
[322663328,1713196240763,-1379.81,0.00032876,7]
[322663329,1713196240772,-769.35,0.00032876,7]
[322663330,1713196240781,-790.83,0.00032876,7]
[322663331,1713196240790,-500.0,0.00032876,7]
[322663332,1713196240800,-24129.63,0.00032876,7]
[322663333,1713196240809,-618.29175402,0.00032876,7]
[322663334,1713196240819,-500.0,0.00032876,7]
[322663335,1713196240827,-500.0,0.00032876,7]
[322663336,1713196240837,-5127.66,0.00032876,7]
[322663337,1713196240849,-500.0,0.00032876,7]
[322663338,1713196240863,-500.0,0.00032876,7]
[322663339,1713196240872,-608.44,0.00032876,7]
[322663340,1713196240882,-500.0,0.00032876,7]
[322663341,1713196240891,-1903.21,0.00032876,7]
[322663342,1713196240902,-751.66,0.00032876,7]
[322663343,1713196240915,-500.0,0.00032876,7]
[322663344,1713196240925,-2943.7,0.00032876,7]
[322663345,1713196240936,-500.0,0.00032876,7]
[322663346,1713196240946,-500.0,0.00032876,7]
[322663347,1713196240956,-759.82,0.00032876,7]
[322663348,1713196240966,-500.0,0.00032876,7]
[322663349,1713196240977,-1017.9,0.00032876,7]
[322663350,1713196240987,-500.0,0.00032876,7]
[322663351,1713196240996,-500.0,0.00032876,7]
[322663352,1713196241006,-585.35500815,0.00032876,7]